bitfinex-derivatives/quotes_BTCF0:USTF0_20251204
["timestamp","ask_amount","ask_price","bid_price","bid_amount"]
[1764889963934,0.05529,92388.0,92387.0,0.069212]
[1764889965146,0.05729,92388.0,92387.0,0.069212]
[1764889965744,0.05829,92388.0,92387.0,0.069212]
[1764889968239,0.0691119,92388.0,92387.0,0.069212]
[1764889969545,0.05829,92388.0,92387.0,0.069212]
[1764889971847,0.05829,92388.0,92387.0,0.010822]
[1764889973152,0.05829,92388.0,92367.0,0.05807733]
[1764889973153,0.02817,92366.0,92365.0,0.00016241]
[1764889973342,0.05529,92366.0,92365.0,0.06097243]
[1764889974646,0.05529,92366.0,92365.0,0.06497243]
[1764889975457,0.05529,92366.0,92365.0,0.00316241]
[1764889975756,0.05529,92366.0,92365.0,0.02922241]
[1764889975960,0.05529,92366.0,92365.0,0.05855241]
[1764889980251,0.05529,92366.0,92365.0,0.05955241]
[1764889983461,0.05529,92366.0,92365.0,0.05855241]
[1764889983847,0.05529,92366.0,92365.0,0.02922241]
[1764889984253,0.05529,92366.0,92365.0,0.05805241]
[1764889984462,0.05529,92366.0,92365.0,0.03022241]
[1764889985065,0.05529,92366.0,92365.0,0.02922241]
[1764889985359,0.05529,92366.0,92365.0,0.00016241]
[1764889985961,0.05777,92346.0,92345.0,0.05664]
[1764889986150,0.0685968,92346.0,92345.0,0.05664]
[1764889987455,0.0685968,92346.0,92345.0,0.05964]
[1764889988163,0.0685968,92346.0,92345.0,0.06064]
[1764889995065,0.05777,92346.0,92345.0,0.06064]
[1764889997064,0.07459241,92355.0,92354.0,0.05664]
[1764889997262,0.08080707,92355.0,92354.0,0.05906002]
[1764889997454,0.06875821,92355.0,92354.0,0.05906002]
[1764889998265,0.08541821,92355.0,92354.0,0.00242002]
[1764889998466,0.10829963,92355.0,92354.0,0.05906002]
[1764889999356,0.10829963,92355.0,92354.0,0.06006002]
[1764889999860,0.10829963,92355.0,92354.0,0.05764]
[1764890002163,0.10829963,92355.0,92354.0,0.02981]
[1764890004976,0.10829963,92355.0,92354.0,0.001]
[1764890005976,0.10829963,92355.0,92354.0,0.02981]
[1764890008876,0.10829963,92355.0,92354.0,0.05764]
[1764890013080,0.09163963,92355.0,92354.0,0.05764]
[1764890017179,0.02304383,92355.0,92354.0,0.05764]
[1764890019577,0.0841343,92368.0,92367.0,0.0704644]
[1764890020384,0.07331,92368.0,92367.0,0.0704644]
[1764890020784,0.07431,92368.0,92367.0,0.0704644]
[1764890021784,0.07631,92368.0,92367.0,0.0704644]
[1764890021970,0.05965,92368.0,92367.0,0.0704644]
[1764890022688,0.05765,92368.0,92367.0,0.0724644]
[1764890022879,0.05665,92368.0,92367.0,0.0724644]
[1764890023286,0.05665,92368.0,92367.0,0.0734644]
[1764890023675,0.05665,92368.0,92367.0,0.0744644]
[1764890025885,0.0285,92372.0,92371.0,0.0108239]
[1764890026079,0.05589,92372.0,92371.0,0.06900392]
[1764890027779,0.05589,92372.0,92371.0,0.07100392]
[1764890029083,0.07218,92372.0,92371.0,0.07100392]
[1764890030088,0.07218,92372.0,92371.0,0.06018002]
[1764890031579,0.09497865,92372.0,92371.0,0.06018002]
[1764890032986,0.09497865,92372.0,92371.0,0.03234002]
[1764890033185,0.09497865,92372.0,92371.0,0.002]
[1764890034283,0.03908865,92372.0,92363.0,0.0108247]
[1764890034489,0.07218,92364.0,92363.0,0.0665847]
[1764890035288,0.09498058,92364.0,92363.0,0.0665847]
[1764890035478,0.09498058,92364.0,92363.0,0.0685847]
[1764890035887,0.10580568,92364.0,92363.0,0.0407447]
[1764890037091,0.10580568,92364.0,92363.0,0.0397447]
[1764890040082,0.10580568,92364.0,92363.0,0.0675847]
[1764890042891,0.10580568,92364.0,92363.0,0.0118247]
[1764890043290,0.10580568,92364.0,92363.0,0.0397447]
[1764890044092,0.10580568,92364.0,92363.0,0.0387447]
[1764890044293,0.10580568,92364.0,92363.0,0.0397447]
[1764890044888,0.10580568,92364.0,92363.0,0.0670147]
[1764890045088,0.05130058,92364.0,92363.0,0.0670147]
[1764890045285,0.02280058,92364.0,92363.0,0.0670147]
[1764890045486,0.00016241,92377.0,92376.0,0.0108233]
[1764890045791,0.05864241,92377.0,92376.0,0.0677033]
[1764890046791,0.03009241,92377.0,92376.0,0.0677033]
[1764890046986,0.00016241,92377.0,92376.0,0.0687033]
[1764890051398,0.05864241,92377.0,92376.0,0.0687033]
[1764890051597,0.03009241,92377.0,92376.0,0.0687033]
[1764890054299,0.00016241,92377.0,92376.0,0.0687033]
[1764890055396,0.21327566,92390.0,92389.0,0.0677018]
[1764890055596,0.05848,92390.0,92389.0,0.0677018]
[1764890056492,0.06148,92390.0,92389.0,0.0677018]
[1764890056794,0.06248,92390.0,92389.0,0.0677018]
[1764890065101,0.0733017,92390.0,92389.0,0.0677018]
[1764890065992,0.0733017,92390.0,92389.0,0.05688]
[1764890071211,0.0733017,92390.0,92380.0,0.00016241]
[1764890071212,0.05848,92381.0,92380.0,0.00016241]
[1764890071410,0.05848,92381.0,92380.0,0.05946243]
[1764890072706,0.05948,92381.0,92380.0,0.05946243]
[1764890073108,0.05948,92381.0,92380.0,0.05704241]
[1764890073303,0.05948,92381.0,92380.0,0.00016241]
[1764890074401,0.05948,92381.0,92380.0,0.01340523]
[1764890074606,0.05948,92381.0,92380.0,0.00016241]
[1764890075608,0.05948,92381.0,92380.0,0.00258243]
[1764890075813,0.05948,92381.0,92380.0,0.05877243]
[1764890078001,0.05948,92381.0,92380.0,0.00016241]
[1764890078206,0.05948,92381.0,92380.0,0.05877243]
[1764890087020,0.05948,92381.0,92380.0,0.00016241]
[1764890088911,0.05948,92381.0,92365.0,0.03881142]
[1764890088912,0.0216458,92380.0,92365.0,0.03881142]
[1764890089121,0.05809,92364.0,92363.0,0.06840142]
[1764890089319,0.05809,92364.0,92363.0,0.05714]
[1764890090728,0.05809,92364.0,92363.0,0.06114]
[1764890091726,0.05809,92364.0,92363.0,0.05814]
[1764890091913,0.05809,92364.0,92363.0,0.05914]
[1764890092118,0.05809,92364.0,92363.0,0.05814]
[1764890095628,0.02924,92364.0,92363.0,0.05814]
[1764890096030,0.05809,92369.0,92368.0,0.0679643]
[1764890096236,0.05809,92369.0,92368.0,0.07038432]
[1764890097423,0.05809,92361.0,92360.0,0.0680254]
[1764890098531,0.0689151,92361.0,92360.0,0.0798505]
[1764890098836,0.05809,92361.0,92360.0,0.0798505]
[1764890100035,0.05809,92361.0,92360.0,0.0808505]
[1764890101037,0.05809,92361.0,92360.0,0.0788505]
[1764890101230,0.085434,92370.0,92369.0,0.05714]
[1764890101427,0.085434,92370.0,92369.0,0.05956002]
[1764890103337,0.085434,92370.0,92369.0,0.06056002]
[1764890103833,0.17127463,92380.0,92369.0,0.06056002]
[1764890103834,0.05586241,92373.0,92372.0,0.05676]
[1764890104027,0.05586241,92373.0,92372.0,0.05918002]
[1764890104834,0.07346,92370.0,92369.0,0.02874]
[1764890105030,0.07346,92370.0,92369.0,0.001]
[1764890105335,0.07346,92370.0,92369.0,0.00342002]
[1764890105522,0.07346,92370.0,92369.0,0.001]
[1764890105939,0.07346,92370.0,92359.0,0.04963662]
[1764890105940,0.07346,92360.0,92359.0,0.0675852]
[1764890106237,0.0842852,92360.0,92359.0,0.02774]
[1764890106738,0.0842852,92360.0,92359.0,0.05676]
[1764890107132,0.0842852,92360.0,92359.0,0.05776]
[1764890108338,0.0842852,92360.0,92359.0,0.001]
[1764890108541,0.0842852,92360.0,92359.0,0.00342002]
[1764890108838,0.0842852,92360.0,92359.0,0.001]
[1764890109026,0.0842852,92360.0,92359.0,0.03116002]
[1764890109230,0.0842852,92360.0,92359.0,0.00342002]
[1764890109434,0.0842852,92360.0,92359.0,0.03116002]
[1764890109631,0.0842852,92360.0,92359.0,0.03016002]
[1764890109940,0.0842852,92360.0,92359.0,0.05918002]
[1764890110238,0.0842852,92360.0,92359.0,0.06018002]
[1764890110439,0.0842852,92360.0,92359.0,0.07100532]
[1764890110739,0.0842852,92360.0,92359.0,0.07000532]
[1764890110933,0.0842852,92360.0,92359.0,0.07100532]
[1764890112643,0.0842852,92360.0,92359.0,0.07000532]
[1764890112844,0.0842852,92360.0,92359.0,0.07100532]
[1764890113741,0.0842852,92360.0,92359.0,0.07000532]
[1764890113934,0.0842852,92360.0,92359.0,0.07100532]
[1764890114435,0.10701746,92360.0,92359.0,0.07100532]
[1764890116337,0.10701746,92360.0,92359.0,0.07000532]
[1764890116542,0.10701746,92360.0,92359.0,0.07100532]
[1764890116944,0.10701746,92360.0,92359.0,0.07000532]
[1764890117138,0.10701746,92360.0,92359.0,0.00342002]
[1764890117335,0.10701746,92360.0,92359.0,0.05776]
[1764890119335,0.10701746,92360.0,92359.0,0.05676]
[1764890119541,0.10701746,92360.0,92359.0,0.05776]
[1764890125138,0.09619226,92360.0,92359.0,0.05776]
[1764890125340,0.02878241,92373.0,92372.0,0.0675838]
[1764890125541,0.02291459,92373.0,92372.0,0.0675838]
[1764890125746,0.00016241,92373.0,92372.0,0.0675838]
[1764890126141,0.02878241,92373.0,92372.0,0.0675838]
[1764890126346,0.05586241,92373.0,92372.0,0.0675838]
[1764890126655,0.05786241,92373.0,92372.0,0.0675838]
[1764890128649,0.00216241,92373.0,92372.0,0.0675838]
[1764890129451,0.02878241,92373.0,92372.0,0.0675838]
[1764890130146,0.05586241,92373.0,92372.0,0.0675838]
[1764890130346,0.05586241,92373.0,92372.0,0.1064344]
[1764890133258,0.05586241,92373.0,92372.0,0.0675838]
[1764890136153,0.00016241,92373.0,92372.0,0.0675838]
[1764890137366,0.02835241,92373.0,92372.0,0.0675838]
[1764890137554,0.05776241,92373.0,92372.0,0.0675838]
[1764890143664,0.00016241,92373.0,92372.0,0.0675838]
[1764890144770,0.05672241,92373.0,92372.0,0.0675838]
[1764890149080,0.02835241,92373.0,92372.0,0.0675838]
[1764890149266,0.00016241,92373.0,92372.0,0.0675838]
[1764890150566,0.07322,92395.0,92394.0,0.0681712]
[1764890150763,0.09605572,92395.0,92394.0,0.0681712]
[1764890151866,0.10205572,92395.0,92394.0,0.0681712]
[1764890152063,0.10205572,92395.0,92394.0,0.07879327]
[1764890152269,0.07922,92395.0,92394.0,0.07879327]
[1764890154474,0.06201,92395.0,92394.0,0.07879327]
[1764890155367,0.03364,92395.0,92394.0,0.07879327]
[1764890155575,0.00588183,92395.0,92394.0,0.07879327]
[1764890155876,0.00016241,92404.0,92403.0,0.0681702]
[1764890156176,0.00016241,92404.0,92403.0,0.07059022]
[1764890156472,0.00027055,92406.0,92405.0,0.05735]
[1764890156675,0.00027055,92406.0,92405.0,0.07256002]
[1764890157067,0.05628055,92406.0,92405.0,0.07256002]
[1764890157474,0.05628055,92406.0,92405.0,0.57256002]
[1764890157675,0.02791055,92406.0,92405.0,0.57356002]
[1764890157973,0.02780241,92415.0,92414.0,0.0681689]
[1764890158174,0.02780241,92415.0,92414.0,0.07058892]
[1764890158572,0.05617241,92415.0,92414.0,0.07058892]
[1764890159166,0.02780241,92415.0,92414.0,0.07458892]
[1764890159678,0.05617241,92415.0,92414.0,0.07458892]
[1764890159878,0.00016241,92415.0,92414.0,0.07458892]
[1764890160273,0.05617241,92415.0,92414.0,0.07458892]
[1764890160473,0.00016241,92415.0,92414.0,0.07458892]
[1764890160881,0.02780241,92415.0,92414.0,0.07458892]
[1764890161079,0.07278241,92415.0,92414.0,0.07458892]
[1764890161283,0.07278241,92415.0,92414.0,0.06377002]
[1764890161674,0.07278241,92415.0,92414.0,0.56629002]
[1764890163878,0.07278241,92415.0,92414.0,0.06377002]
[1764890164785,0.07278241,92415.0,92414.0,0.03550002]
[1764890164980,0.07278241,92415.0,92414.0,0.001]
[1764890165185,0.07278241,92415.0,92405.0,0.00016232]
[1764890165186,0.05511,92406.0,92405.0,0.05690232]
[1764890165388,0.05511,92406.0,92405.0,0.05932234]
[1764890165587,0.05511,92406.0,92405.0,0.07014224]
[1764890167089,0.05511,92406.0,92405.0,0.07514224]
[1764890167589,0.05511,92406.0,92405.0,0.07014224]
[1764890167791,0.05511,92406.0,92405.0,0.07514224]
[1764890167994,0.05511,92406.0,92405.0,0.07614224]
[1764890170788,0.05511,92406.0,92405.0,0.07514224]
[1764890171089,0.05511,92406.0,92405.0,0.06432234]
[1764890171306,0.05511,92406.0,92405.0,0.07114224]
[1764890171487,0.05511,92406.0,92405.0,0.07514224]
[1764890171992,0.05511,92406.0,92405.0,0.07414224]
[1764890172194,0.05511,92406.0,92405.0,0.07514224]
[1764890175588,0.05527241,92415.0,92414.0,0.05674]
[1764890175789,0.05527241,92415.0,92414.0,0.06997892]
[1764890176381,0.07280241,92415.0,92414.0,0.06997892]
[1764890176987,0.07280241,92415.0,92414.0,0.07197892]
[1764890177790,0.07280241,92415.0,92414.0,0.06116002]
[1764890178095,0.07280241,92415.0,92414.0,0.06416002]
[1764890179288,0.05527241,92415.0,92414.0,0.06416002]
[1764890180095,0.05527241,92415.0,92414.0,0.06316002]
[1764890180291,0.05527241,92415.0,92414.0,0.06416002]
[1764890180484,0.07280241,92415.0,92414.0,0.06416002]
[1764890181193,0.09557637,92415.0,92414.0,0.06416002]
[1764890182300,0.07804637,92415.0,92414.0,0.06416002]
[1764890182991,0.09557637,92415.0,92414.0,0.06416002]
[1764890183895,0.07804637,92415.0,92414.0,0.06416002]
[1764890185091,0.09557637,92415.0,92414.0,0.03690002]
[1764890185388,0.09561381,92415.0,92414.0,0.00742002]
[1764890185593,0.10643251,92415.0,92414.0,0.005]
[1764890186598,0.05511,92414.0,92413.0,0.0108189]
[1764890186898,0.0779214,92414.0,92413.0,0.0108189]
[1764890188104,0.0779214,92414.0,92413.0,0.0675589]
[1764890188801,0.0503714,92414.0,92413.0,0.0705589]
[1764890189304,0.0503714,92414.0,92413.0,0.0675589]
[1764890189599,0.0503714,92414.0,92413.0,0.0705589]
[1764890189600,0.0228114,92414.0,92413.0,0.0705589]
[1764890189902,0.0228114,92414.0,92413.0,0.0675589]
[1764890190089,0.0228114,92414.0,92413.0,0.0725589]
[1764890190493,0.0228114,92414.0,92413.0,0.0735589]
[1764890191006,0.0228114,92414.0,92413.0,0.0745589]
[1764890192198,0.00016241,92415.0,92414.0,0.05674]
[1764890192404,0.00016241,92415.0,92414.0,0.05916002]
[1764890193304,0.00016241,92415.0,92414.0,0.06016002]
[1764890195192,0.00016241,92415.0,92414.0,0.1184383]
[1764890195391,0.00016241,92415.0,92414.0,0.1234383]
[1764890195595,0.00016241,92415.0,92414.0,0.06516002]
[1764890195903,0.02997241,92415.0,92414.0,0.06516002]
[1764890196309,0.02997241,92415.0,92414.0,0.1234338]
[1764890197408,0.02997241,92415.0,92414.0,0.06516002]
[1764890198203,0.02997241,92415.0,92414.0,0.12342424]
[1764890199211,0.00016241,92415.0,92414.0,0.12342424]
[1764890199404,0.02997241,92415.0,92414.0,0.12342424]
[1764890199602,0.00016241,92415.0,92414.0,0.06516002]
[1764890200506,0.02997241,92415.0,92414.0,0.06516002]
[1764890201612,0.00016241,92415.0,92414.0,0.56756002]
[1764890202014,0.00016241,92415.0,92414.0,0.06516002]
[1764890202214,0.00016241,92415.0,92414.0,0.56756002]
[1764890203209,0.00016241,92415.0,92414.0,0.62582424]
[1764890203919,0.02993241,92415.0,92414.0,0.62582424]
[1764890204217,0.05928,92435.0,92434.0,0.0690765]
[1764890204419,0.08207713,92435.0,92434.0,0.0690765]
[1764890204610,0.08207713,92435.0,92434.0,0.3983165]
[1764890204806,0.08207713,92435.0,92434.0,0.5099565]
[1764890205008,0.09990713,92435.0,92434.0,0.5099565]
[1764890205211,0.09990713,92435.0,92434.0,0.5714765]
[1764890205415,0.09990713,92435.0,92434.0,0.5724765]
[1764890205716,0.09990713,92435.0,92434.0,0.5724365]
[1764890205916,0.09990713,92435.0,92434.0,0.0700765]
[1764890206220,0.09990713,92435.0,92434.0,0.001]
[1764890209320,0.09990713,92435.0,92434.0,0.00342002]
[1764890209517,0.09990713,92435.0,92434.0,0.001]
[1764890209818,0.09990713,92435.0,92434.0,0.00342002]
[1764890210017,0.09990713,92435.0,92434.0,0.001]
[1764890215925,0.09990713,92435.0,92434.0,0.0118165]
[1764890216926,0.07711,92435.0,92434.0,0.0118165]
[1764890217128,0.09989228,92435.0,92434.0,0.0118165]
[1764890221917,0.09989228,92435.0,92434.0,0.001]
[1764890222219,0.0700975,92426.0,92425.0,0.00016232]
[1764890222423,0.01783,92412.0,92409.0,0.0108194]
[1764890222623,0.01783,92412.0,92411.0,0.00242002]
[1764890222624,0.07711,92412.0,92411.0,0.00242002]
[1764890223128,0.09991177,92412.0,92411.0,0.00242002]
[1764890223324,0.0879291,92412.0,92409.0,0.0108194]
[1764890223630,0.05928,92410.0,92409.0,0.0108194]
[1764890224130,0.05928,92410.0,92409.0,0.0398194]
[1764890224526,0.05928,92410.0,92409.0,0.0675194]
[1764890224826,0.05928,92410.0,92409.0,0.0695194]
[1764890225226,0.05928,92410.0,92409.0,0.0138194]
[1764890225629,0.05928,92410.0,92409.0,0.0108194]
[1764890225934,0.05928,92410.0,92409.0,0.0428694]
[1764890226324,0.0700993,92410.0,92409.0,0.003]
[1764890226727,0.09288544,92410.0,92409.0,0.003]
[1764890227335,0.05609,92402.0,92401.0,0.01098272]
[1764890227829,0.05609,92402.0,92401.0,0.04003272]
[1764890228030,0.05609,92402.0,92401.0,0.06773272]
[1764890228424,0.05609,92402.0,92401.0,0.07073272]
[1764890229133,0.05609,92402.0,92401.0,0.07173272]
[1764890231126,0.05609,92402.0,92401.0,0.07073272]
[1764890231323,0.05609,92402.0,92401.0,0.07173272]
[1764890231526,0.05609,92402.0,92401.0,0.06973272]
[1764890231933,0.05609,92402.0,92401.0,0.06873272]
[1764890234038,0.05609,92402.0,92401.0,0.06773272]
[1764890234235,0.05609,92402.0,92401.0,0.06873272]
[1764890234634,0.05609,92402.0,92401.0,0.06773272]
[1764890234834,0.05609,92402.0,92401.0,0.06873272]
[1764890235842,0.05609,92402.0,92401.0,0.01198272]
[1764890236031,0.05609,92402.0,92401.0,0.04103272]
[1764890236232,0.05609,92402.0,92401.0,0.06873272]
[1764890237629,0.05609,92402.0,92401.0,0.06773272]
[1764890237837,0.05609,92402.0,92401.0,0.06873272]
[1764890238243,0.05609,92402.0,92401.0,0.06773272]
[1764890238445,0.05609,92402.0,92401.0,0.06973272]
[1764890239642,0.05609,92402.0,92401.0,0.07073272]
[1764890240545,0.05609,92402.0,92401.0,0.06873272]
[1764890240746,0.05609,92402.0,92401.0,0.07073272]
[1764890243038,0.05609,92402.0,92401.0,0.01398272]
[1764890243948,0.05609,92402.0,92401.0,0.01298272]
[1764890244141,0.05609,92402.0,92401.0,0.01098272]
[1764890244341,0.05609,92402.0,92401.0,0.01198272]
[1764890244736,0.05609,92402.0,92401.0,0.01098272]
[1764890244942,0.05609,92402.0,92401.0,0.01198272]
[1764890245938,0.05609,92402.0,92401.0,0.00116232]
[1764890246144,0.05609,92402.0,92401.0,0.01198272]
[1764890246355,0.05609,92402.0,92401.0,0.04103272]
[1764890246544,0.05609,92402.0,92401.0,0.06873272]
[1764890247648,0.01694,92408.0,92401.0,0.06873272]
[1764890247649,0.05609,92412.0,92411.0,0.0675692]
[1764890247849,0.07896497,92412.0,92411.0,0.0675692]
[1764890248144,0.07897019,92412.0,92411.0,0.0675692]
[1764890249351,0.08097019,92412.0,92411.0,0.0675692]
[1764890261469,0.09742019,92412.0,92411.0,0.0675692]
[1764890263564,0.08097019,92412.0,92411.0,0.0675692]
[1764890264971,0.09817019,92412.0,92411.0,0.0675692]
[1764890265362,0.08097019,92412.0,92411.0,0.0675692]
[1764890269374,0.09817019,92412.0,92411.0,0.0675692]
[1764890269567,0.0108196,92408.0,92404.0,0.06905217]
[1764890269762,0.05823,92402.0,92401.0,0.00016232]
[1764890269959,0.08115177,92402.0,92401.0,0.00016232]
[1764890270165,0.05823,92389.0,92388.0,0.02973]
[1764890270460,0.0108224,92384.0,92383.0,0.08796227]
[1764890270664,0.0690524,92384.0,92383.0,0.02973]
[1764890270871,0.0172,92385.0,92372.0,9.025e-05]
[1764890270872,0.05823,92378.0,92376.0,0.05823227]
[1764890271069,0.05823,92377.0,92376.0,0.05823227]
[1764890271269,0.05823,92377.0,92376.0,0.05862]
[1764890271470,0.05823,92377.0,92376.0,0.55862]
[1764890271671,0.05823,92377.0,92376.0,0.56946576]
[1764890272377,0.05823,92377.0,92376.0,0.57046576]
[1764890272767,0.05823,92377.0,92376.0,0.57246576]
[1764890272967,0.05823,92377.0,92376.0,0.07246576]
[1764890273167,0.05823,92377.0,92376.0,0.07346576]
[1764890274170,0.05823,92377.0,92376.0,0.07246576]
[1764890275778,0.05823,92377.0,92376.0,0.07046576]
[1764890276080,0.05823,92377.0,92376.0,0.07146576]
[1764890276270,0.05823,92377.0,92376.0,0.07246576]
[1764890276976,0.05823,92377.0,92376.0,0.01384576]
[1764890277770,0.05823,92377.0,92376.0,0.01284576]
[1764890277975,0.05823,92377.0,92376.0,0.01084576]
[1764890278173,0.05823,92374.0,92373.0,0.0694436]
[1764890279080,0.05823,92374.0,92373.0,0.08002979]
[1764890280782,0.05823,92374.0,92373.0,0.07020619]
[1764890280983,0.05823,92374.0,92373.0,0.07120619]
[1764890281183,0.05823,92374.0,92373.0,0.08202989]
[1764890281574,0.05823,92374.0,92373.0,0.08102989]
[1764890281775,0.05823,92374.0,92373.0,0.02340989]
[1764890281978,0.05823,92374.0,92373.0,0.05313989]
[1764890282179,0.05823,92374.0,92373.0,0.05213989]
[1764890282378,0.05823,92374.0,92373.0,0.08202989]
[1764890283379,0.05823,92374.0,92373.0,0.08102989]
[1764890284381,0.05823,92374.0,92373.0,0.0704437]
[1764890284776,0.05823,92374.0,92373.0,0.08116197]
[1764890285277,0.05823,92374.0,92373.0,0.08216197]
[1764890286081,0.05823,92374.0,92373.0,0.002]
[1764890286281,0.05823,92374.0,92373.0,0.001]
[1764890286489,0.0671937,92373.0,92372.0,9.025e-05]
[1764890286785,0.05637,92373.0,92372.0,0.02781025]
[1764890287294,0.05637,92373.0,92372.0,0.05516025]
[1764890289492,0.05637,92373.0,92372.0,0.05616025]
[1764890290792,0.05637,92373.0,92372.0,0.05716025]
[1764890292085,0.05637,92373.0,92372.0,0.05616025]
[1764890292489,0.05637,92373.0,92372.0,0.05516025]
[1764890292694,0.05637,92373.0,92372.0,0.05616025]
[1764890293190,0.067193,92379.0,92378.0,0.0658931]
[1764890293393,0.067193,92379.0,92378.0,0.05507]
[1764890294185,0.067193,92379.0,92378.0,0.0658931]
[1764890294386,0.067193,92379.0,92378.0,0.0668931]
[1764890295181,0.067193,92379.0,92378.0,0.0678931]
[1764890295589,0.067193,92379.0,92378.0,0.05707]
[1764890295988,0.067193,92379.0,92378.0,0.05607]
[1764890296392,0.09008571,92379.0,92378.0,0.05607]
[1764890298905,0.02289271,92379.0,92378.0,0.05607]
[1764890299190,0.05653232,92386.0,92385.0,0.0658923]
[1764890299389,0.05064265,92386.0,92385.0,0.06831232]
[1764890299592,0.05653232,92386.0,92385.0,0.06831232]
[1764890302096,0.00016232,92386.0,92385.0,0.08364232]
[1764890302293,0.00016232,92386.0,92385.0,0.14187459]
[1764890303291,0.05653232,92386.0,92385.0,0.58364232]
[1764890303491,0.02770232,92386.0,92385.0,0.58364232]
[1764890304396,0.00016232,92386.0,92385.0,0.58364232]
[1764890306697,0.05653232,92386.0,92385.0,0.5]
[1764890306898,0.07945239,92386.0,92385.0,0.5]
[1764890307888,0.07308,92375.0,92374.0,0.0108235]
[1764890308996,0.07308,92375.0,92374.0,0.0118235]
[1764890311009,0.07308,92375.0,92374.0,0.0108235]
[1764890311311,0.07308,92375.0,92374.0,0.0118235]
[1764890312007,0.07308,92375.0,92374.0,0.0128235]
[1764890312211,0.07308,92375.0,92374.0,0.0118235]
[1764890312512,0.07308,92375.0,92374.0,0.0415435]
[1764890313001,0.07308,92375.0,92374.0,0.0688935]
[1764890313802,0.07308,92375.0,92374.0,0.0668935]
[1764890314103,0.07308,92375.0,92374.0,0.0678935]
[1764890314710,0.07308,92375.0,92374.0,0.0688935]
[1764890315008,0.07308,92375.0,92374.0,0.0678935]
[1764890315710,0.07308,92375.0,92374.0,0.0688935]
[1764890316099,0.07308,92375.0,92374.0,0.0678935]
[1764890316413,0.07393,92375.0,92374.0,0.0688935]
[1764890317008,0.07393,92375.0,92374.0,0.0668935]
[1764890317203,0.07393,92375.0,92374.0,0.0688935]
[1764890317604,0.07393,92375.0,92374.0,0.0668935]
[1764890317898,0.07393,92375.0,92374.0,0.0688935]
[1764890318406,0.05637,92375.0,92374.0,0.0688935]
[1764890318803,0.05637,92375.0,92374.0,0.0668935]
[1764890319007,0.07393,92375.0,92374.0,0.0688935]
[1764890319712,0.07393,92375.0,92374.0,0.03072]
[1764890319911,0.07393,92375.0,92374.0,0.003]
[1764890320211,0.07393,92375.0,92374.0,0.03131]
[1764890320412,0.07393,92375.0,92374.0,0.05886]
[1764890320711,0.07393,92375.0,92374.0,0.003]
[1764890320911,0.07393,92375.0,92374.0,0.03131]
[1764890321112,0.07393,92375.0,92374.0,0.003]
[1764890321298,0.07393,92375.0,92374.0,0.002]
[1764890321498,0.05583,92373.0,92368.0,0.01059566]
[1764890321705,0.05583,92373.0,92367.0,0.00016232]
[1764890321907,0.07872837,92373.0,92367.0,0.00016232]
[1764890322712,0.05583,92368.0,92367.0,0.00016232]
[1764890322915,0.08955267,92368.0,92367.0,0.00016232]
[1764890323714,0.08964344,92368.0,92367.0,0.00016232]
[1764890324404,0.09064344,92368.0,92367.0,0.00016232]
[1764890324914,0.08964344,92368.0,92367.0,0.00016232]
[1764890329513,0.06674507,92368.0,92367.0,0.00016232]
[1764890330819,0.08348507,92368.0,92367.0,0.00016232]
[1764890331219,0.10635488,92368.0,92367.0,0.00016232]
[1764890332032,0.08348507,92368.0,92367.0,0.00016232]
[1764890333229,0.08448507,92368.0,92367.0,0.00016232]
[1764890333925,0.08348507,92368.0,92367.0,0.00016232]
[1764890334231,0.10636364,92368.0,92367.0,0.00016232]
[1764890341350,0.09553934,92368.0,92345.0,0.0108269]
[1764890341634,0.0275671,92348.0,92347.0,0.0382866]
[1764890341836,0.08495787,92348.0,92347.0,0.0108266]
[1764890342432,0.08495787,92348.0,92347.0,0.0391766]
[1764890342833,0.08495787,92348.0,92347.0,0.0666366]
[1764890343441,0.08495787,92348.0,92347.0,0.0676366]
[1764890345643,0.08495787,92348.0,92347.0,0.0666366]
[1764890345843,0.08495787,92348.0,92347.0,0.0676366]
[1764890348345,0.08495787,92348.0,92347.0,0.05681]
[1764890348541,0.08495787,92348.0,92347.0,0.001]
[1764890349447,0.08495787,92348.0,92347.0,0.00342002]
[1764890349639,0.08495787,92348.0,92347.0,0.03298002]
[1764890349839,0.08495787,92348.0,92347.0,0.06091002]
[1764890350041,0.08495787,92348.0,92347.0,0.06191002]
[1764890350241,0.08495787,92348.0,92347.0,0.07273672]
[1764890352543,0.07413077,92348.0,92347.0,0.07273672]
[1764890352843,0.03002077,92348.0,92347.0,0.07273672]
[1764890353049,9.077e-05,92348.0,92347.0,0.07273672]
[1764890353750,0.05600077,92348.0,92347.0,0.07273672]
[1764890356344,9.077e-05,92348.0,92347.0,0.07273672]
[1764890357142,0.00016241,92357.0,92356.0,0.07397]
[1764890357446,0.05607241,92357.0,92356.0,0.07173572]
[1764890357846,0.05607241,92357.0,92352.0,0.05836901]
[1764890358144,0.05607241,92357.0,92347.0,0.53056]
[1764890358145,0.07339,92348.0,92347.0,0.53056]
[1764890358740,0.0842166,92348.0,92347.0,0.05949]
[1764890359147,0.0842166,92348.0,92347.0,0.001]
[1764890359651,0.10710599,92348.0,92347.0,0.001]
[1764890362452,0.10710599,92348.0,92347.0,0.03056]
[1764890364039,0.10710599,92348.0,92347.0,0.001]
[1764890365847,0.10710056,92348.0,92347.0,0.001]
[1764890366048,0.10710056,92348.0,92347.0,0.03056]
[1764890366352,0.10710056,92348.0,92347.0,0.05949]
[1764890366648,0.07339,92348.0,92347.0,0.05949]
[1764890367445,0.07339,92348.0,92338.0,0.05853142]
[1764890367446,0.07339,92340.0,92338.0,0.05853142]
[1764890367642,0.05591,92329.0,92328.0,0.05836901]
[1764890367850,0.05591,92327.0,92321.0,0.05836901]
[1764890368052,0.05591,92327.0,92322.0,0.0109412]
[1764890368541,0.05591,92327.0,92317.0,0.05865244]
[1764890368954,0.05591,92327.0,92318.0,0.01083]
[1764890369154,0.05591,92327.0,92319.0,0.01056817]
[1764890369950,0.05591,92327.0,92318.0,0.01083]
[1764890370550,0.05591,92327.0,92320.0,0.0108298]
[1764890370750,0.05591,92327.0,92318.0,0.01072818]
[1764890370951,0.05591,92327.0,92317.0,0.01111363]
[1764890371150,0.05591,92327.0,92317.0,0.02177478]
[1764890374668,0.05746,92318.0,92317.0,0.08110478]
[1764890375864,0.0682901,92318.0,92317.0,0.08110478]
[1764890376570,0.0682901,92318.0,92317.0,0.08210478]
[1764890377370,0.0682901,92318.0,92317.0,0.07144363]
[1764890378861,0.0682901,92318.0,92317.0,0.08208164]
[1764890379170,0.0682901,92318.0,92317.0,0.07125144]